bitfinex/quotes_SOLUSD_20260202
["timestamp","ask_amount","ask_price","bid_price","bid_amount"]
[1769995641693,3.59582973,102.65,102.56,2.88278136]
[1769995641694,3.59582973,102.63,102.56,2.88278136]
[1769995641891,14.66513745,102.61,102.57,9.7492038]
[1769995642097,14.66513745,102.6,102.56,9.7498293]
[1769995642298,14.66513745,102.62,102.58,14.66513745]
[1769995642497,18.26096718,102.63,102.58,14.66513745]
[1769995642800,18.26096718,102.67,102.62,14.66513745]
[1769995643202,3.59582973,102.66,102.62,14.66513745]
[1769995643497,18.26096718,102.68,102.64,24.40724369]
[1769995643683,18.26096718,102.68,102.64,9.74210624]
[1769995643684,28.00010986,102.68,102.64,9.74210624]
[1769995643890,18.26096718,102.67,102.63,24.40841675]
[1769995644206,3.59582973,102.67,102.64,9.7425995]
[1769995644999,18.26096718,102.66,102.61,14.66513745]
[1769995645304,3.59582973,102.66,102.63,9.74319994]
[1769995645502,28.00010986,102.68,102.63,24.40833739]
[1769995645704,27.99998507,102.68,102.64,14.66513745]
[1769995645998,3.59582973,102.71,102.67,14.66513745]
[1769995646208,3.59582973,102.69,102.65,14.66513745]
[1769995646401,3.59582973,102.71,102.67,14.66513745]
[1769995646587,3.59582973,102.72,102.66,2.88360779]
[1769995646787,3.59582973,102.71,102.67,14.66513745]
[1769995647188,3.59582973,102.71,102.68,14.66513745]
[1769995647399,3.59582973,102.71,102.64,2.88380849]
[1769995647613,3.59582973,102.71,102.67,14.66513745]
[1769995647799,3.59582973,102.71,102.68,9.73899493]
[1769995647995,24.40035157,102.72,102.68,24.40413238]
[1769995647996,3.59582973,102.72,102.68,24.40413238]
[1769995648194,18.26096718,102.72,102.68,9.73899493]
[1769995648395,12.71452986,102.72,102.68,9.73899493]
[1769995648592,13.33029625,102.73,102.68,9.11870013]
[1769995648806,3.59582973,102.72,102.68,9.11870013]
[1769995649202,3.59582973,102.71,102.67,43.20844589]
[1769995649502,22.44899638,102.73,102.68,9.11870013]
[1769995649704,22.44990484,102.72,102.68,18.85727622]
[1769995649889,12.71452986,102.72,102.68,18.85727622]
[1769995650419,3.59582973,102.72,102.68,18.85758842]
[1769995650707,22.44994724,102.72,102.68,9.73888829]
[1769995650900,22.44994724,102.72,102.67,18.85816742]
[1769995651089,12.71452986,102.7,102.65,9.11870013]
[1769995651404,12.71452986,102.69,102.65,9.74117399]
[1769995651788,12.71452986,102.66,102.61,18.86430607]
[1769995651992,9.11870013,102.64,102.61,9.74560594]
[1769995652600,12.71452986,102.65,102.62,9.74468225]
[1769995652912,12.71452986,102.66,102.62,18.86338238]
[1769995653104,12.71452986,102.64,102.6,9.74613291]
[1769995653311,12.71452986,102.64,102.59,36.37066369]
[1769995653609,12.71452986,102.64,102.6,9.74614462]
[1769995653811,12.71452986,102.64,102.6,18.86484475]
[1769995654307,9.11870013,102.65,102.6,43.23131648]
[1769995654511,9.11870013,102.66,102.62,9.11870013]
[1769995654689,22.45494865,102.67,102.62,9.11870013]
[1769995654891,3.59582973,102.69,102.64,9.11870013]
[1769995655119,3.59582973,102.71,102.67,9.11870013]
[1769995655297,12.71452986,102.71,102.67,9.11870013]
[1769995655814,3.59582973,102.68,102.61,2.88551424]
[1769995655994,22.4501428,102.72,102.65,34.09612858]
[1769995656196,22.4501428,102.72,102.68,9.11870013]
[1769995656395,12.71452986,102.7,102.66,9.11870013]
[1769995656613,3.59582973,102.7,102.66,9.11870013]
[1769995656800,22.4501428,102.72,102.67,9.11870013]
[1769995657510,3.59582973,102.72,102.68,9.11870013]
[1769995657709,3.66356866,102.74,102.68,2.88604453]
[1769995657910,0.1,102.74,102.72,9.11870013]
[1769995658122,3.56356866,102.76,102.73,9.11870013]
[1769995658500,22.41386159,102.76,102.71,43.19522626]
[1769995658717,12.68226879,102.75,102.71,9.73615032]
[1769995658922,3.56356866,102.75,102.71,18.85485045]
[1769995659407,3.56356866,102.75,102.69,29.94621725]
[1769995659408,9.11870013,102.74,102.69,36.17870013]
[1769995659716,12.68226879,102.73,102.69,9.11870013]
[1769995659913,3.56356866,102.73,102.7,9.73679441]
[1769995660409,12.68226879,102.73,102.69,18.85632327]
[1769995660998,9.11870013,102.74,102.7,9.11870013]
[1769995661198,12.68226879,102.75,102.7,9.11870013]
[1769995661393,22.41472296,102.75,102.7,9.11870013]
[1769995661698,12.68226879,102.74,102.7,9.11870013]
[1769995661905,22.41560043,102.74,102.7,18.85533425]
[1769995662216,9.11870013,102.73,102.69,18.85616645]
[1769995662416,9.11870013,102.73,102.69,9.73746632]
[1769995662603,12.68226879,102.74,102.7,9.73704951]
[1769995662916,3.56356866,102.74,102.7,18.85574964]
[1769995663309,9.11870013,102.75,102.7,46.08538401]
[1769995663619,9.11870013,102.79,102.74,9.11870013]
[1769995663791,12.68226879,102.79,102.73,2.88705153]
[1769995663994,22.41100623,102.79,102.75,18.85096975]
[1769995664401,12.68226879,102.78,102.74,9.73287663]
[1769995664596,12.68226879,102.77,102.73,9.73401596]
[1769995664900,9.11870013,102.79,102.75,18.85095317]
[1769995665101,12.68226879,102.8,102.75,18.85095317]
[1769995665415,12.68226879,102.79,102.75,18.85095317]
[1769995666299,3.62590152,102.78,102.71,27.06]
[1769995666594,9.11870013,102.73,102.69,12.00638525]
[1769995666795,27.04,102.78,102.71,9.73608548]
[1769995666796,9.11870013,102.75,102.71,9.73608548]
[1769995666999,9.11870013,102.75,102.71,43.19516142]
[1769995667202,9.11870013,102.76,102.72,2.88768512]
[1769995667402,12.74460165,102.78,102.74,9.11870013]
[1769995667616,3.62590152,102.78,102.75,9.11870013]
[1769995667827,3.62590152,102.8,102.76,9.11870013]
[1769995668129,12.74460165,102.8,102.76,9.11870013]
[1769995668309,3.62590152,102.8,102.77,9.11870013]
[1769995668803,12.74460165,102.8,102.76,9.73089509]
[1769995668999,0.1,102.82,102.76,9.73089509]
[1769995669209,3.72590152,102.82,102.78,9.11870013]
[1769995669417,12.84460165,102.82,102.77,12.00669124]
[1769995669810,9.11870013,102.79,102.76,9.73089509]
[1769995670011,9.11870013,102.78,102.75,9.73202036]
[1769995670334,12.74460165,102.76,102.72,9.73469877]
[1769995670541,9.11870013,102.75,102.72,9.73469877]
[1769995671108,9.11870013,102.77,102.72,21.741689]
[1769995671430,9.11870013,102.79,102.75,9.11870013]
[1769995671724,13.35401617,102.8,102.75,9.11870013]
[1769995671725,12.74460165,102.8,102.75,9.11870013]
[1769995672223,12.74460165,102.8,102.76,9.11870013]
[1769995672422,12.72943652,102.8,102.76,18.83446111]
[1769995672605,22.45711743,102.8,102.76,18.83446111]
[1769995672921,12.72943652,102.8,102.76,9.73135325]
[1769995673107,12.72943652,102.8,102.76,18.83488825]
[1769995673312,12.72943652,102.8,102.76,43.16342075]
[1769995673626,3.62590152,102.8,102.76,43.16342075]
[1769995673826,22.45711088,102.8,102.76,9.73135325]
[1769995674211,12.72943652,102.79,102.74,9.103535]
[1769995674527,9.103535,102.77,102.73,18.83749804]
[1769995674703,3.62590152,102.81,102.76,9.103535]
[1769995674903,12.72943652,102.81,102.76,9.103535]
[1769995675216,12.72943652,102.81,102.75,9.103535]
[1769995675217,9.103535,102.79,102.75,9.103535]
[1769995675407,9.103535,102.79,102.74,11.99240276]
[1769995675606,9.103535,102.79,102.75,9.103535]
[1769995676030,12.72943652,102.8,102.75,9.103535]
[1769995676227,3.62590152,102.81,102.77,9.73046608]
[1769995676407,12.72943652,102.8,102.76,9.73095656]
[1769995676608,12.72943652,102.8,102.76,43.16302406]
[1769995676911,9.103535,102.8,102.76,43.16302406]
[1769995677111,12.82943652,102.82,102.77,9.103535]
[1769995677312,0.1,102.82,102.78,9.103535]
[1769995677907,3.62590152,102.87,102.81,11.99281882]
[1769995678126,3.62590152,102.86,102.82,9.103535]
[1769995678312,12.72943652,102.86,102.82,18.82857562]
[1769995678733,3.62590152,102.86,102.82,18.82857562]
[1769995679046,12.72943652,102.86,102.82,9.72504062]
[1769995679530,9.103535,102.85,102.82,9.72504062]
[1769995679733,9.103535,102.87,102.82,21.7181289]
[1769995679921,12.72943652,102.87,102.82,21.7181289]
[1769995680426,9.103535,102.86,102.82,43.14291135]
[1769995680617,12.72943652,102.87,102.83,9.103535]
[1769995680821,3.62590152,102.87,102.84,9.103535]
[1769995681145,0.1,102.9,102.86,11.9932207]
[1769995681313,0.1,102.9,102.88,9.103535]
[1769995681518,0.1,102.9,102.86,2.8896857]
[1769995681519,3.72590152,102.9,102.84,29.9096857]
[1769995681718,22.54763103,102.9,102.85,9.103535]
[1769995681927,9.103535,102.87,102.82,36.92919295]
[1769995682122,9.103535,102.89,102.85,9.103535]
[1769995682635,9.103535,102.89,102.85,18.82588531]
[1769995682841,22.54763103,102.9,102.85,18.82588531]
[1769995683220,12.72943652,102.88,102.84,9.72375417]
[1769995683533,9.103535,102.86,102.81,36.123535]
[1769995683721,9.103535,102.84,102.79,9.103535]
[1769995683922,3.62590152,102.79,102.74,2.8900739]
[1769995684149,3.62590152,102.75,102.71,9.73557048]
[1769995684438,3.62590152,102.75,102.71,18.83968532]
[1769995684439,9.103535,102.75,102.71,18.83968532]
[1769995684636,9.103535,102.77,102.72,9.103535]
[1769995684932,13.3557778,102.78,102.73,9.103535]
[1769995685153,9.103535,102.77,102.72,11.99373534]
[1769995685314,22.45771277,102.8,102.75,9.103535]
[1769995685516,9.103535,102.83,102.78,9.103535]
[1769995685716,12.72943652,102.84,102.79,9.103535]
[1769995686233,3.62590152,102.83,102.79,9.103535]
[1769995686534,12.72943652,102.84,102.8,9.103535]
[1769995686744,12.72943652,102.84,102.79,18.83180628]
[1769995687440,3.62590152,102.83,102.79,9.72827128]
[1769995687738,3.62590152,102.83,102.79,18.83180628]
[1769995688040,9.103535,102.8,102.76,9.73079254]
[1769995688219,12.63023115,102.81,102.77,9.103535]
[1769995688415,13.25368016,102.81,102.77,18.83372051]
[1769995688615,12.63023115,102.85,102.8,9.103535]
[1769995688830,3.52669615,102.85,102.81,9.103535]
[1769995689032,12.63023115,102.87,102.83,9.103535]
[1769995689224,3.52669615,102.86,102.83,9.103535]
[1769995690317,3.52669615,102.85,102.78,0.28432314]
[1769995690638,9.103535,102.81,102.76,11.99446404]
[1769995690844,9.103535,102.81,102.77,9.103535]
[1769995691024,9.103535,102.83,102.79,9.103535]
[1769995691538,3.52669615,102.86,102.82,9.103535]
[1769995691723,3.52669615,102.86,102.83,9.103535]
[1769995691923,3.52669615,102.86,102.82,9.103535]
[1769995692132,13.24886552,102.86,102.82,9.103535]
[1769995692325,12.63023115,102.86,102.82,9.103535]
[1769995692533,22.35235631,102.86,102.82,9.103535]
[1769995692741,12.63023115,102.86,102.82,18.82919075]
[1769995692924,3.52669615,102.86,102.82,18.82919075]
[1769995693428,22.35231749,102.86,102.82,9.72565575]
[1769995693623,18.82472078,102.87,102.83,9.103535]
[1769995693820,9.103535,102.89,102.85,9.103535]
[1769995694040,3.62669615,102.9,102.87,9.103535]
[1769995694528,3.84416645,102.92,102.89,18.8226525]
[1769995694720,3.84416645,102.92,102.9,9.103535]
[1769995694721,0.3174703,102.92,102.9,9.103535]
[1769995695022,0.3174703,102.92,102.89,18.8226525]
[1769995695225,0.3174703,102.92,102.9,9.103535]
[1769995695430,0.3174703,102.92,102.89,9.7191175]
[1769995695632,0.3174703,102.92,102.9,9.103535]
[1769995696324,0.3174703,102.92,102.89,18.8226525]
[1769995697148,1e-08,102.92,102.91,9.103535]
[1769995697357,3.52669616,102.92,102.89,9.7191175]
[1769995697750,1e-08,102.92,102.91,9.103535]
[1769995697936,12.63023115,102.96,102.91,9.103535]
[1769995698132,22.34282984,102.96,102.91,9.103535]
[1769995698540,3.52669615,102.96,102.92,9.103535]
[1769995698739,0.1,102.98,102.94,9.103535]
[1769995698740,13.33736039,102.98,102.94,9.103535]
[1769995698959,84.64881429,103.04,102.97,9.103535]
[1769995698960,8.60626447,103.02,102.97,9.103535]
[1769995699253,8.60626447,103.02,102.96,2.89193163]
[1769995699254,3.52669615,103.04,103.0,9.103535]
[1769995699656,13.23177767,103.04,103.0,9.103535]
[1769995700159,12.63023115,103.01,102.96,9.103535]
[1769995700337,3.52669615,103.0,102.97,9.71137781]
[1769995700736,3.52669615,103.0,102.96,18.81570644]
[1769995701058,22.34011027,102.99,102.94,21.70966449]
[1769995701233,3.52669615,102.98,102.94,18.81762776]
[1769995701439,3.52669615,103.0,102.97,9.103535]
[1769995701654,5.56024781,103.03,102.99,9.103535]
[1769995701956,5.56024781,103.03,103.0,9.103535]
[1769995702157,9.08694396,103.03,103.0,9.103535]
[1769995702366,9.08694396,103.03,103.01,9.103535]
[1769995702532,9.08694396,103.03,102.98,2.89224332]
[1769995702839,5.56024781,103.03,103.01,9.103535]
[1769995703233,5.56024781,103.03,103.02,9.103535]
[1769995703671,12.63023115,103.07,103.02,9.103535]
[1769995703854,3.52669615,103.1,103.05,9.103535]
[1769995704056,12.63023115,103.1,103.05,9.103535]
[1769995704378,12.63023115,103.08,103.04,9.103535]
[1769995704559,3.52669615,103.07,103.03,8.91234472]
[1769995704759,12.63023115,103.05,103.01,9.70755724]
[1769995704979,12.63023115,103.03,102.99,9.70913461]
[1769995705174,3.52669615,103.03,102.99,9.70913461]
[1769995705472,3.52669615,103.08,103.02,11.9960794]
[1769995705676,3.52669615,103.08,103.04,9.103535]
[1769995705855,12.63023115,103.08,103.04,9.103535]
[1769995706171,3.52669615,103.09,103.03,9.103535]
[1769995706362,9.103535,103.08,103.04,9.103535]
[1769995706676,12.63023115,103.06,103.02,9.103535]
[1769995706975,3.52669615,103.06,103.02,9.103535]
[1769995707173,12.63023115,103.04,103.0,9.103535]
[1769995707349,12.63023115,103.03,102.99,9.103535]
[1769995707780,12.63023115,103.01,102.96,33.38345562]
[1769995708073,9.103535,102.99,102.95,18.81642835]
[1769995708274,9.103535,103.0,102.95,9.71323041]
[1769995708453,12.63023115,103.03,102.98,9.103535]
[1769995708650,3.52669615,103.03,103.0,9.103535]
[1769995708880,18.80898113,103.04,103.0,9.103535]
[1769995708881,3.52669615,103.04,103.0,9.103535]
[1769995709056,12.63023115,103.04,103.0,9.103535]
[1769995709374,12.63023115,103.02,102.97,18.81442961]
[1769995709678,12.63023115,103.04,103.0,9.103535]
[1769995709856,3.52669615,103.04,103.0,9.103535]
[1769995710172,12.63023115,103.04,103.0,9.103535]
[1769995710357,12.63023115,103.04,102.98,36.88007978]
[1769995710358,22.335426,103.04,102.99,9.103535]
[1769995710559,12.63023115,103.02,102.98,9.71059129]
[1769995710774,12.63023115,103.04,102.99,9.103535]
[1769995710981,13.23169923,103.04,103.0,9.103535]
[1769995711270,22.33523423,103.04,102.99,18.81300004]
[1769995711472,12.63023115,103.02,102.97,9.103535]
[1769995711780,3.52669615,103.02,102.97,18.81490179]
[1769995711973,12.63023115,103.0,102.95,9.103535]
[1769995712167,3.52669615,103.0,102.96,9.103535]
[1769995712472,3.52669615,102.99,102.95,9.103535]
[1769995712877,12.63023115,102.99,102.95,9.103535]
[1769995713080,3.52669615,102.99,102.95,9.103535]
[1769995713271,3.52669615,102.99,102.95,18.81667486]
[1769995714479,9.103535,103.0,102.96,9.103535]
[1769995714784,22.33804217,103.01,102.96,9.103535]
[1769995715078,12.63023115,103.01,102.97,9.103535]
[1769995715368,3.52669615,103.01,102.98,9.103535]
[1769995715572,3.52669615,103.03,102.99,9.103535]
[1769995715972,12.63023115,103.01,102.96,18.81566163]
[1769995716156,9.70602876,103.03,102.95,18.81687111]
[1769995716157,3.52669615,102.99,102.95,18.81687111]
[1769995716358,12.63023115,103.01,102.97,18.81507723]
[1769995716672,22.33625991,103.03,102.98,9.103535]
[1769995716982,3.52669615,103.03,102.99,9.103535]
[1769995717279,22.33619841,103.03,102.99,9.103535]
[1769995717489,12.63023115,103.03,102.99,18.8129156]
[1769995717682,22.33635015,103.03,102.99,9.103535]
[1769995717868,22.33635015,103.03,102.98,18.81374701]
[1769995718060,22.33635015,103.03,102.99,9.70966919]
[1769995718260,3.62725376,103.02,102.98,9.103535]
[1769995718460,3.62725376,102.98,102.93,9.71481112]
[1769995718763,4.27527085,103.02,102.93,18.81847051]
[1769995718764,12.73078876,102.97,102.93,18.81847051]
[1769995718984,12.73078876,102.97,102.94,9.71420714]
[1769995719189,12.73078876,102.99,102.94,9.103535]
[1769995719362,12.73078876,102.98,102.93,9.71534052]
[1769995719563,9.103535,103.0,102.95,9.103535]
[1769995719771,3.62725376,103.0,102.96,9.103535]
[1769995720182,3.62725376,103.02,102.99,9.103535]
[1769995720382,12.73078876,103.04,103.0,9.103535]
[1769995720585,3.62725376,103.04,103.01,9.103535]
[1769995721584,3.62725376,103.04,103.01,18.81073601]
[1769995722368,9.103535,103.03,103.0,9.70831737]
[1769995723070,3.62725376,103.04,103.01,9.70744224]
[1769995723492,3.62725376,103.06,103.02,9.103535]
[1769995723687,12.73078876,103.06,103.02,9.103535]
[1769995723869,3.62725376,103.05,103.01,43.08046563]
[1769995724560,12.73078876,103.04,103.0,18.81176567]
[1769995725180,37.588099,103.06,103.01,9.70779079]
[1769995725400,3.62725376,103.07,103.04,9.70496894]
[1769995725685,3.62725376,103.07,103.03,43.07375785]
[1769995725858,3.62725376,103.07,103.04,9.103535]
[1769995726364,3.62725376,103.07,103.03,43.07375785]
[1769995727791,3.62725376,103.07,103.04,9.103535]
[1769995728085,3.62725376,103.07,103.03,43.07375785]
[1769995728382,22.43307558,103.07,103.03,9.70544561]
[1769995728976,9.103535,103.08,103.04,9.103535]
[1769995729282,3.50267769,103.08,103.04,9.103535]
[1769995729664,12.60621269,103.08,103.03,43.07375785]
[1769995730173,12.60621269,103.06,103.02,9.70657118]
[1769995730366,9.103535,103.05,103.02,9.70657118]
[1769995730570,12.60621269,103.04,103.0,36.66828107]
[1769995731282,12.60621269,103.04,103.01,9.70762973]
[1769995731481,12.60621269,103.07,103.03,9.103535]
[1769995731685,3.50267769,103.07,103.04,9.103535]
[1769995731892,3.50267769,103.09,103.05,9.103535]
[1769995732189,12.60621269,103.09,103.05,9.103535]
[1769995732372,22.30649649,103.09,103.05,9.103535]
[1769995732687,22.30649649,103.09,103.04,9.103535]
[1769995733186,12.60621269,103.09,103.05,9.70402717]
[1769995733389,22.30665903,103.09,103.05,9.70402717]
[1769995733567,3.50267769,103.08,103.04,18.80834178]
[1769995733890,12.60621269,103.08,103.04,9.70477118]
[1769995734087,13.10621269,103.08,103.04,9.70477118]
[1769995734282,3.50267769,103.05,102.98,2.89511431]
[1769995734472,9.06269355,103.03,102.99,9.06269355]
[1769995734785,9.06269355,103.0,102.96,26.96]
[1769995734992,12.56537124,103.01,102.97,9.06269355]
[1769995735186,12.56537124,103.01,102.98,9.71012692]
[1769995735687,12.56537124,103.03,102.98,43.04937902]
[1769995735866,9.06269355,103.02,102.98,43.04937902]
[1769995736072,3.50267769,103.03,102.99,9.06269355]
[1769995736269,22.27131989,103.03,102.98,43.04937902]
[1769995736468,12.56537124,103.02,102.97,18.77386246]
[1769995736681,12.56537124,103.01,102.97,9.71116891]
[1769995736970,9.06269355,103.02,102.98,9.06269355]
[1769995737166,12.57185167,103.03,102.99,18.77149733]
[1769995737585,22.27792295,103.03,102.99,18.77149733]
[1769995737887,12.57185167,103.03,102.99,18.77149733]
[1769995738070,18.76862894,103.03,102.99,9.70880378]
[1769995738272,3.50915812,103.02,102.99,9.70880378]
[1769995739380,12.57185167,103.02,102.99,9.70880378]
[1769995739573,22.27870793,103.02,102.98,18.77290625]
[1769995739885,3.50915812,103.02,102.98,18.77290625]
[1769995740184,3.50915812,103.02,102.99,9.06269355]
[1769995740389,3.50915812,103.02,102.98,43.0494648]
[1769995740566,4.27527085,103.06,102.98,43.0494648]
[1769995740768,3.50915812,103.08,103.04,9.06269355]
[1769995740986,3.82662842,103.12,103.07,11.95833467]
[1769995741181,17.35525678,103.17,103.13,2.47817082]
[1769995741384,29.26,103.22,103.13,2.47817082]
[1769995741385,3.76407642,103.22,103.13,9.69622379]
[1769995741567,3.76407642,103.24,103.21,5.06560438]
[1769995741883,3.76407642,103.24,103.14,5.64518502]
[1769995741884,3.50915812,103.21,103.14,3.46218778]
[1769995742085,3.50915812,103.19,103.13,37.39966047]
[1769995742289,12.57185167,103.18,103.13,12.52488133]
[1769995742486,75.2741673,103.25,103.15,9.06269355]
[1769995742487,3.50915812,103.2,103.15,9.06269355]
[1769995742793,36.95147375,103.25,103.1,3.46218778]
[1769995742794,12.57185167,103.17,103.1,3.46218778]
[1769995742991,9.06269355,103.13,103.09,9.69996954]
[1769995743172,9.69367972,103.16,103.1,9.06269355]
[1769995743368,3.50915812,103.16,103.13,9.06269355]
[1769995743669,3.50915812,103.16,103.11,9.06269355]
[1769995743874,12.57185167,103.16,103.11,9.06269355]
[1769995744270,12.57185167,103.16,103.13,9.06269355]
[1769995744271,3.50915812,103.16,103.13,9.06269355]
[1769995744472,3.50915812,103.13,103.07,9.06269355]
[1769995744691,9.06269355,103.14,103.09,22.22494367]
[1769995744993,12.57185167,103.11,103.05,3.46218778]
[1769995745176,12.57185167,103.1,103.06,9.70294258]
[1769995745375,9.06269355,103.11,103.07,9.06269355]
[1769995745584,3.50915812,103.13,103.08,9.06269355]
[1769995745786,9.06269355,103.12,103.07,12.52488133]
[1769995745992,9.06269355,103.1,103.05,37.42597446]
[1769995746195,9.06269355,103.1,102.97,57.48237782]
[1769995746196,9.06269355,103.08,103.04,9.70485846]
[1769995746395,9.06269355,103.06,103.02,9.70620091]
[1769995746680,9.06269355,103.06,103.02,9.70683762]
[1769995746889,9.06269355,103.05,103.01,13.16980324]
[1769995747205,9.06269355,103.06,103.02,9.70679115]
[1769995747392,9.06269355,103.05,103.01,9.70754651]
[1769995747580,12.57185167,103.06,103.01,18.77024006]
[1769995747898,9.06269355,103.05,103.01,9.70754651]
[1769995748075,12.45521394,103.06,103.01,18.77024006]
[1769995748482,12.45521394,103.06,103.01,43.03972845]
[1769995748798,3.39252039,103.09,103.05,9.06269355]
[1769995748978,12.45521394,103.09,103.05,9.06269355]
[1769995749178,3.39252039,103.11,103.07,9.06269355]
[1769995749405,13.09010351,103.12,103.08,9.06269355]
[1769995749699,12.45521394,103.12,103.08,9.06269355]
[1769995750195,9.06269355,103.09,103.04,26.96]
[1769995750377,14.53082798,103.05,103.0,13.16187376]
[1769995750582,14.53082798,103.05,103.01,14.53082798]
[1769995750979,14.53082798,103.04,103.0,17.98410351]
[1769995751197,3.39252039,103.06,103.02,14.53082798]
[1769995751379,13.09387721,103.08,103.03,24.23632316]
[1769995751581,3.39252039,103.12,103.07,14.53082798]
[1769995751787,3.39252039,103.12,103.09,14.53082798]
[1769995752097,17.92334837,103.12,103.07,14.53082798]
[1769995752280,3.39252039,103.12,103.08,14.53082798]
[1769995752483,13.09006968,103.12,103.08,14.53082798]
[1769995752783,3.39252039,103.13,103.09,14.53082798]
[1769995753184,3.39252039,103.09,103.03,64.38354795]
[1769995753387,17.92334837,103.09,103.05,24.23485515]
[1769995753589,3.39252039,103.09,103.06,14.53082798]
[1769995753801,17.92334837,103.09,103.05,24.23485515]
[1769995753996,27.62390856,103.09,103.04,24.23542777]
[1769995754193,17.92334837,103.07,103.01,3.45327553]
[1769995754390,17.92334837,103.07,102.67,103.9]
[1769995754391,14.53082798,103.04,103.0,24.23919763]
[1769995754608,14.53082798,103.04,103.01,9.70722231]
[1769995754897,14.53082798,103.04,103.0,14.53082798]
[1769995755111,3.39252039,103.05,103.0,9.70870844]
[1769995755280,14.53082798,103.04,103.0,9.70870844]
[1769995755481,17.92334837,103.03,102.98,14.53082798]
[1769995755789,3.39252039,102.98,102.93,14.53082798]
[1769995756098,17.92334837,102.99,102.94,24.24494802]
[1769995756278,14.53082798,102.96,102.91,27.74544522]
[1769995756481,14.53082798,102.96,102.92,9.71564442]
[1769995756700,17.92334837,102.97,102.92,14.53082798]
[1769995757002,3.39252039,103.01,102.96,14.53082798]
[1769995757189,17.92334837,103.01,102.96,14.53082798]
[1769995757390,3.39252039,103.01,102.97,14.53082798]
[1769995757586,3.39252039,103.01,102.98,14.53082798]
[1769995757904,17.92334837,103.01,102.96,24.24292521]
[1769995758101,3.39252039,103.01,102.97,24.24217051]
[1769995758402,3.39252039,103.01,102.98,14.53082798]
[1769995758708,14.53082798,103.02,102.98,14.53082798]
[1769995758709,17.92334837,103.02,102.98,14.53082798]
[1769995759010,17.92334837,103.02,102.97,33.99025871]
[1769995759011,17.92334837,103.01,102.97,9.71134253]
[1769995759208,3.39252039,103.01,102.98,14.53082798]
[1769995759418,17.92334837,103.03,102.97,33.99025871]
[1769995759597,17.92334837,103.03,102.99,24.24006376]
[1769995759994,3.39252039,103.03,102.99,24.24006376]
[1769995760315,17.92334837,103.03,102.99,24.24006376]
[1769995760487,17.92334837,103.03,102.99,9.70923578]
[1769995760688,14.53082798,103.04,103.0,14.53082798]
[1769995760890,3.39252039,103.04,103.0,14.53082798]
[1769995761192,27.62683411,103.06,103.01,14.53082798]
[1769995761399,3.39252039,103.05,103.01,14.53082798]
[1769995761702,3.39252039,103.07,103.02,14.53082798]
[1769995761993,28.52753574,103.09,103.05,14.53082798]
[1769995761994,3.39252039,103.09,103.05,14.53082798]
[1769995762199,48.27597625,103.17,103.05,14.53082798]
[1769995762200,3.39252039,103.11,103.07,14.53082798]
[1769995762409,3.39252039,103.11,103.01,87.87619609]
[1769995762410,3.39252039,103.11,103.06,3.45327553]
[1769995762604,3.39252039,103.11,103.07,14.53082798]
[1769995762805,3.39252039,103.11,103.08,14.53082798]
[1769995763104,3.39252039,103.12,103.09,14.53082798]
[1769995763306,3.39252039,103.14,103.1,14.53082798]
[1769995763606,3.39252039,103.13,103.1,14.53082798]
[1769995764010,3.39252039,103.13,103.09,14.53082798]
[1769995764215,3.39252039,103.11,103.07,24.23270138]
[1769995764392,3.39252039,103.11,103.08,24.23183067]
[1769995764586,3.39252039,103.09,103.05,14.53082798]
[1769995764799,17.92334837,103.09,103.04,14.53082798]
[1769995765003,3.39252039,103.09,103.06,14.53082798]
[1769995765316,3.39252039,103.09,103.05,24.23428344]
[1769995765687,27.62371276,103.09,103.05,14.53082798]
[1769995766114,3.39252039,103.08,103.05,14.53082798]
[1769995767203,3.39252039,103.08,103.05,24.23475676]
[1769995767509,3.39252039,103.07,103.03,14.53082798]
[1769995767696,3.39252039,103.07,103.04,24.23526758]
[1769995767898,3.39252039,103.09,103.05,24.23460912]
[1769995768111,3.39252039,103.09,103.06,14.53082798]
[1769995768504,13.09282418,103.09,103.05,24.23460912]
[1769995768708,3.39252039,103.07,103.03,14.53082798]
[1769995768910,3.39252039,103.05,103.01,24.23840459]
[1769995769110,17.92334837,103.05,103.0,24.23913573]
[1769995769309,3.39252039,103.04,102.99,48.51417318]
[1769995769501,27.62779583,103.05,103.01,14.53082798]
[1769995769897,3.39252039,103.05,103.01,14.53082798]
[1769995770306,27.6259301,103.07,103.03,14.53082798]
[1769995770513,27.62485945,103.08,103.04,14.53082798]
[1769995770815,3.39252039,103.08,103.05,14.53082798]
[1769995771496,3.39252039,103.09,103.06,14.53082798]
[1769995772008,13.09127822,103.11,103.08,14.53082798]
[1769995772215,3.39252039,103.11,103.08,14.53082798]
[1769995772412,3.39252039,103.11,103.08,9.04660882]
[1769995773307,52.75021548,103.15,103.05,9.70367091]
[1769995773308,9.7002619,103.09,103.05,9.70367091]
[1769995773515,9.7002619,103.09,103.05,9.04660882]
[1769995773703,3.39252039,103.07,103.02,3.45327553]
[1769995773899,9.7002619,103.09,103.0,9.70851731]